[Event "VIII Open Semana Santa 2024"]
[Site "San Vicente del Raspeig"]
[Date "2024.03.30"]
[Round "6.12"]
[White "Shuvalova, Polina"]
[Black "Trigo Urquijo, Sergio"]
[Result "1-0"]
[ECO "B30"]
[WhiteElo "2455"]
[BlackElo "2387"]
[Annotator "TA"]
[PlyCount "137"]
[EventDate "2024.03.27"]
[EventType "swiss"]
[EventCountry "ESP"]
[SourceTitle "playchess.com"]
[Source "ChessBase"]
[SourceQuality "1"]
[TimeControl "5400+30"]

{[%evp 9,137,18,19,14,21,10,27,27,36,33,63,55,66,56,98,95,125,107,127,109,114,95,102,96,115,82,102,37,43,33,24,14,14,14,25,25,25,25,26,20,22,22,21,14,22,21,77,42,40,36,36,33,33,33,68,36,21,25,50,10,76,9,9,10,10,11,12,8,24,10,52,8,101,106,104,93,101,115,101,79,88,89,134,26,28,0,0,0,0,0,64,28,76,96,248,74,445,439,708,666,707,66,60,10,10,10,19,18,22,0,72,8,79,79,137,97,139,119,119,114,794,794,787,787,1534,1474,1347,1300,29984,29985]} 1. e4 {[%emt 0:00:03]} c5 {[%emt 0:00:39]} 2. Nf3 {[%emt 0:00:04]} Nc6 {[%emt 0:00:31]} 3. Bb5 {[%emt 0:00:18]} e5 {[%emt 0:00:33]} 4. O-O {[%emt 0:00:45]} Bd6 {[%emt 0:00:31]} 5. d3 {[%emt 0:06:03]} Nf6 {[%emt 0:06:29]} 6. a4 {[%emt 0:01:09]} a6 {[%emt 0:04:36]} 7. Bxc6 {[%emt 0:03:05]} dxc6 {[%emt 0:02:31]} 8. a5 {[%emt 0:00:19] White has an edge.} Bg4 {[%emt 0:13:51]} 9. h3 {[%emt 0:01:18]} Bxf3 {[%emt 0:00:48]} 10. Qxf3 {[%emt 0:00:07]} Nd7 {[%emt 0:03:15]} 11. Qg4 {[%emt 0:02:16]} Qf6 {[%emt 0:11:59]} 12. Na3 {[%emt 0:01:24]} Qg6 {[%emt 0:10:08]} 13. Nc4 {[%emt 0:07:34]} Qxg4 {[%emt 0:07:11]} 14. hxg4 {[%emt 0:00:04]} (14. Nxd6+ Ke7 15. hxg4 Kxd6) 14... Be7 {[%emt 0:00:09]} 15. f4 {[%emt 0:03:25]} exf4 {[%emt 0:03:33]} 16. Bxf4 {[%emt 0:05:46]} h5 {[%emt 0:01:18]} 17. gxh5 {[%emt 0:03:07] White is much more active.} Rxh5 {[%emt 0:00:09]} 18. Ra3 {[%emt 0:01:25]} (18. Bc7 $16) 18... O-O-O $14 {[%emt 0:01:43]} 19. Bg3 {[%emt 0:11:32]} f6 {[%emt 0:03:36]} 20. Raa1 {[%emt 0:50:46]} Rdh8 {[%emt 0:01:23]} 21. Rae1 {[%emt 0:00:00]} Rh1+ {[%emt 0:01:27]} 22. Kf2 {[%emt 0:00:00]} Rxf1+ {[%emt 0:00:07]} 23. Rxf1 {[%emt 0:00:00][%cal Be1f1,Bf1f3,Bf3e3][%mdl 32]} (23. Kxf1 $6 Nf8 24. Kf2 Ne6 $16) 23... Nf8 {[%emt 0:01:32]} 24. c3 {[%emt 0:00:00]} Ne6 {[%emt 0:01:05]} 25. Ke3 {[%emt 0:00:00]} Rh5 {[%emt 0:00:49]} 26. Rf3 {[%emt 0:00:00]} Rh1 {[%emt 0:03:24]} 27. e5 {[%emt 0:00:00]} Rg1 {[%emt 0:03:15]} (27... Kd7 $11) 28. exf6 {[%emt 0:00:00]} Bxf6 {[%emt 0:00:06]} 29. Kf2 {[%emt 0:00:00]} Rb1 {[%emt 0:01:59]} 30. Re3 {[%emt 0:00:00]} Kd7 {[%emt 0:00:37]} 31. Kf3 {[%emt 0:00:00]} Nc7 {[%emt 0:04:55]} 32. Bxc7 {[%emt 0:00:00]} Kxc7 {[%emt 0:00:05][%mdl 4096] Endgame. KRB-KRN} 33. Kg4 {[%emt 0:00:00]} Rg1 {[%emt 0:01:49]} 34. g3 {[%emt 0:00:00]} Rg2 {[%emt 0:01:44]} (34... Kd7 $11) 35. Kf3 {[%emt 0:00:00]} (35. Re8 $16) 35... Rg1 $11 {[%emt 0:00:19]} 36. Re2 {[%emt 0:00:00]} Rd1 {[%emt 0:01:10]} 37. Ke4 {[%emt 0:00:00]} Rg1 {[%emt 0:00:15]} 38. Kf4 {[%emt 0:00:00]} Rf1+ {[%emt 0:01:44]} 39. Kg4 {[%emt 0:00:00]} Rg1 {[%emt 0:00:09]} 40. Re8 {[%emt 0:00:00]} Kd7 {[%emt 0:01:56]} (40... Rd1 $1 $11) 41. Rb8 $16 {[%emt 0:00:00]} Kc7 {[%emt 0:00:28]} 42. Rf8 {[%emt 0:00:00]} Rd1 {[%emt 0:02:11]} 43. Rf7+ {[%emt 0:00:00]} Kb8 {[%emt 0:00:49]} 44. Rd7 {[%emt 0:00:00]} (44. Nd6 $6 Rxd3 45. Rxb7+ (45. Nxb7 Rd5 $11) 45... Ka8 $11) 44... Kc8 {[%emt 0:01:19]} 45. Nb6+ {[%emt 0:00:00]} Kb8 {[%emt 0:00:03]} 46. Kf3 {[%emt 0:02:19]} (46. Rf7 $16) 46... Rf1+ $11 {[%emt 0:00:32]} 47. Kg2 {[%emt 0:01:39]} Rd1 {[%emt 0:00:17]} 48. Kh3 {[%emt 0:00:10]} Rh1+ $1 {[%emt 0:00:22]} 49. Kg4 {[%emt 0:00:03]} (49. Kg2 $11 Rd1 50. Kf3) 49... Rd1 $1 $14 {[%emt 0:00:07]} 50. Kf5 {[%emt 0:00:33]} Rg1 {[%emt 0:02:35]} (50... Rf1+ $1 $11 {is superior.} 51. Kg4 Rf2) 51. g4 $16 {[%emt 0:00:18] [#] aiming for Rf7.} Rg2 $2 {[%emt 0:02:22]} (51... Ra1 $16 {might work better.} 52. Rf7 (52. g5 Rf1+ 53. Ke6 Re1+ 54. Kd6 Bxg5 $18) 52... Rxa5) 52. Nc4 $2 {[%emt 0:00:44]} (52. Rf7 $18 {and the rest is easy. Strongly threatening Ke6.} Rxb2 53. Ke6 (53. Nd7+ Ka7 $16)) 52... Kc8 $2 {[%emt 0:00:20][%mdl 8192]} (52... Rf2+ $16 {is a better chance.} 53. Ke6 Rf3) 53. Rf7 $18 {[%emt 0:00:14]} Kb8 {[%emt 0:00:20]} (53... Rg3 $142 54. Nb6+ (54. Nd6+ Kb8 $18) 54... Kd8 55. Rd7+ (55. Rxb7 Rxd3 56. Ke6 Re3+ 57. Kd6 Be7+ 58. Kxc6 Re6+ 59. Kd5 Rd6+ 60. Ke5 Rg6 $18) 55... Ke8 56. Rxb7 Rxd3) 54. Ke6 {[%emt 0:01:46]} Rg3 {[%emt 0:01:16]} 55. Kd6 $2 {[%emt 0:03:50]} (55. Nd6 Re3+ 56. Kf5 Rxd3 57. Nxb7 (57. Rxb7+ Ka8 $11) 57... Re3 $11) (55. d4 $18 {White wants to mate with Kd7.} Bd8 56. Kd7 (56. dxc5 Rh3 $18) (56. Rxg7 cxd4 57. cxd4 Rd3 $18) 56... Bxa5 57. Nxa5) 55... Rxd3+ $14 {[%emt 0:00:23]} 56. Kxc5 {[%emt 0:00:02]} ({White should try} 56. Ke6 $1 $14) 56... Rd5+ $11 {[%emt 0:00:14]} 57. Kb4 {[%emt 0:00:04]} Rg5 {[%emt 0:00:55]} 58. Nd6 {[%emt 0:02:09]} Rxg4+ {[%emt 0:00:13]} 59. c4 {[%emt 0:00:02]} Bxb2 {[%emt 0:01:00]} (59... Bd4 $11) 60. Rxb7+ $16 {[%emt 0:01:41]} Ka8 {[%emt 0:00:01]} 61. Rb6 {[%emt 0:01:19][%csl LRa6,LRc6]} c5+ {[%emt 0:01:03]} 62. Ka4 {[%emt 0:00:58]} Be5 {[%emt 0:00:32]} 63. Rxa6+ {[%emt 0:00:17]} Kb8 {[%emt 0:00:04]} 64. Kb5 {[%emt 0:00:11]} Kc7 $2 {[%emt 0:00:58][%mdl 8192] Prevents Rb6} (64... Bxd6 $16 65. Rxd6 Kb7) 65. Rc6+ $18 {[%emt 0:00:39]} ({Worse is} 65. Kxc5 Bxd6+ 66. Rxd6 Rxc4+ 67. Kxc4 Kxd6 $11) 65... Kd7 {[%emt 0:00:14]} 66. Nb7 {[%emt 0:00:08]} ({Stronger than} 66. Kxc5 Bd4+ (66... Rg6 67. Kb6 $11) 67. Kb5 Rg2 $11) 66... Rg1 {[%emt 0:00:55]} 67. Nxc5+ {[%emt 0:00:05]} Kd8 {[%emt 0:00:07]} 68. Re6 {[%emt 0:01:44][%cal Ob5c6] [#] Threatening mate with Kc6!} Bb8 {[%emt 0:00:48]} 69. Kc6 {[%emt 0:00:11] Weighted Error Value: White=0.29 (precise) /Black=0.32.  Loses game:     	---       	Black=2      Missed win:     	White=1     	---        Mistake:       	White=4     	Black=8      Inaccurate:     	White=6     	Black=7      OK:         	White=11    	Black=17     Best:        	White=9     	Black=5      Strong:       	---       	Black=2} 1-0

[Event "VIII Open Semana Santa 2024"]
[Site "San Vicente del Raspeig"]
[Date "2024.03.30"]
[Round "6.13"]
[White "Badelka, Olga"]
[Black "Ghazarian, Kirk"]
[Result "1-0"]
[ECO "B44"]
[WhiteElo "2377"]
[BlackElo "2454"]
[Annotator "TA"]
[PlyCount "73"]
[EventDate "2024.03.27"]
[EventType "swiss"]
[EventCountry "ESP"]
[SourceTitle "playchess.com"]
[Source "ChessBase"]
[SourceQuality "1"]
[TimeControl "5400+30"]

{[%evp 18,73,14,0,0,0,0,0,0,-10,-4,-47,-41,-58,-55,-46,-57,-54,-44,-33,-42,-95,-89,-107,-110,-101,-114,-87,-75,-68,-48,-54,-31,-62,-28,-43,-40,-75,-15,-12,87,88,82,96,102,95,274,270,262,269,405,412,2069,1931,29977,29978,29982,29983]} 1. Nf3 {[%emt 0:00:03]} c5 {[%emt 0:00:15]} 2. c4 {[%emt 0:00:47]} Nc6 {[%emt 0:00:22]} 3. Nc3 {[%emt 0:00:32]} Nf6 {[%emt 0:00:25]} 4. d4 {[%emt 0:03:08]} cxd4 {[%emt 0:00:06]} 5. Nxd4 {[%emt 0:00:02]} e6 {[%emt 0:00:18]} 6. e4 {[%emt 0:03:37]} Bb4 {[%emt 0:00:31]} 7. Nxc6 {[%emt 0:00:18]} bxc6 {[%emt 0:00:07]} 8. Bd3 {[%emt 0:00:31]} e5 {[%emt 0:00:32]} 9. O-O {[%emt 0:00:29]} O-O {[%emt 0:00:21]} 10. Qc2 {[%emt 0:13:11]} Bc5 {[%emt 0:08:13]} 11. Bd2 {[%emt 0:04:21]} d6 {[%emt 0:02:12]} 12. Rad1 {[%emt 0:05:10]} h6 {[%emt 0:07:42] The position is equal.} 13. Ne2 {[%emt 0:10:02]} a5 {[%emt 0:18:45]} 14. Ng3 {[%emt 0:02:20]} Ng4 {[%emt 0:08:57] Threatens to win with ...Qh4.} 15. h3 {[%emt 0:08:32]} Qh4 {[%emt 0:01:08]} 16. Nh1 {[%emt 0:00:10]} Nf6 {[%emt 0:00:45]} 17. Rfe1 {[%emt 0:02:38]} Bd4 {[%emt 0:03:54]} 18. Be3 {[%emt 0:02:37]} c5 {[%emt 0:03:26]} 19. Bxd4 {[%emt 0:06:11]} (19. Ng3 $15) 19... cxd4 $17 {[%emt 0:01:24]} 20. c5 {[%emt 0:00:22]} Be6 {[%emt 0:08:43]} 21. cxd6 {[%emt 0:00:08]} Rfc8 {[%emt 0:00:34]} 22. Qa4 {[%emt 0:01:03]} Nd7 {[%emt 0:02:46][%mdl 1024] Black has strong compensation.} 23. Qa3 {[%emt 0:11:38]} Qd8 {[%emt 0:03:21]} 24. Rc1 {[%emt 0:04:49]} Qb6 {[%emt 0:00:35]} 25. Ng3 {[%emt 0:00:32][%cal Bh1g3,Bg3e2,Be2f4,Bf4d3][%mdl 32]} g6 {[%emt 0:09:48]} 26. Ne2 {[%emt 0:06:23]} Nc5 {[%emt 0:03:35]} 27. Bc4 {[%emt 0:04:51]} Bxc4 {[%emt 0:03:27]} (27... Nxe4 $2 {too greedy.} 28. Bxe6 Rxc1 29. Nxc1 $18) (27... Kg7 $17) 28. Rxc4 $11 {[%emt 0:00:03]} Nxe4 {[%emt 0:01:19]} (28... Nd7 $11 29. Rxc8+ Rxc8) 29. Rxc8+ $16 {[%emt 0:00:02]} Rxc8 {[%emt 0:00:01]} 30. d7 {[%emt 0:00:34]} Rd8 {[%emt 0:03:21] [#] And now ...d3 would win.} 31. Nf4 {[%emt 0:00:24]} Qc6 {[%emt 0:07:53] This costs Black the game.} (31... f5 $16 {is a better defense.}) 32. Nd3 $18 {[%emt 0:03:17]} ({Much less strong is} 32. Qxa5 $6 Qxd7 33. Qxe5 Re8 $18) 32... Qd5 {[%emt 0:01:02]} 33. f3 {[%emt 0:02:22]} Ng5 {[%emt 0:00:23]} (33... Nd6 $142 34. Rxe5 Qc6 35. Qxa5 Qxd7) 34. Nxe5 {[%emt 0:00:10]} Ne6 {[%emt 0:00:44]} (34... Rxd7 $142 35. Nxd7 Qxd7 36. Qxa5 Ne6) 35. Qe7 {[%emt 0:00:35]} Rf8 {[%emt 0:00:15] [#]} 36. Nxg6 $1 {[%emt 0:00:49][%mdl 512]} fxg6 {[%emt 0:00:33]} (36... Ra8 37. Qf6) 37. Rxe6 {[%emt 0:00:38] Weighted Error Value: White=0.06 (flawless) /Black=0.43.  Loses game:     	---       	Black=1      Mistake:       	White=1     	Black=4      Inaccurate:     	White=2     	Black=2      OK:         	White=11    	Black=9      Best:        	White=5     	---} 1-0

[Event "VIII Open Semana Santa 2024"]
[Site "San Vicente del Raspeig"]
[Date "2024.03.30"]
[Round "6.14"]
[White "Muthaiah AL"]
[Black "Hristodoulou, Panagiotis"]
[Result "1-0"]
[ECO "A21"]
[WhiteElo "2454"]
[BlackElo "2376"]
[Annotator "RC"]
[PlyCount "103"]
[EventDate "2024.03.27"]
[EventType "swiss"]
[EventCountry "ESP"]
[SourceTitle "playchess.com"]
[Source "ChessBase"]
[SourceQuality "1"]
[TimeControl "5400+30"]

1. c4 {[%emt 0:00:50]} e5 {[%emt 0:00:22]} 2. Nc3 {[%emt 0:00:23]} d6 {[%emt 0:00:15]} 3. Nf3 {[%emt 0:06:00]} f5 {[%emt 0:00:18]} 4. d4 {[%emt 0:01:07]} e4 {[%emt 0:00:14]} 5. Ng5 {[%emt 0:00:18]} Be7 {[%emt 0:00:59]} 6. Nh3 {[%emt 0:00:33]} Nf6 {[%emt 0:02:29]} 7. Bg5 {[%emt 0:02:04]} O-O {[%emt 0:13:36]} 8. e3 {[%emt 0:01:59]} c6 {[%emt 0:02:33]} 9. Nf4 {[%emt 0:01:51]} Na6 {[%emt 0:00:46]} 10. Be2 {[%emt 0:13:49]} Nc7 {[%emt 0:01:03]} 11. Qb3 {[%emt 0:00:09]} Rb8 {[%emt 0:06:37]} 12. O-O {[%emt 0:01:57]} Bd7 {[%emt 0:06:40]} 13. f3 {[%emt 0:12:45]} exf3 {[%emt 0:00:50]} 14. Bxf3 {[%emt 0:00:32]} Ne4 {[%emt 0:18:17]} 15. Bxe7 {[%emt 0:07:59]} Qxe7 {[%emt 0:00:03]} 16. Nxe4 {[%emt 0:00:28]} fxe4 {[%emt 0:00:06]} 17. Be2 {[%emt 0:00:14]} Ne6 {[%emt 0:08:16]} 18. Nh5 {[%emt 0:14:26]} Qg5 {[%emt 0:11:08]} 19. Ng3 {[%emt 0:07:53]} d5 {[%emt 0:00:28]} 20. Rxf8+ {[%emt 0:02:01]} Rxf8 {[%emt 0:02:51]} 21. Rf1 {[%emt 0:00:09]} Bc8 {[%emt 0:12:22]} 22. Rxf8+ {[%emt 0:04:10]} Kxf8 {[%emt 0:01:42]} 23. Kf2 {[%emt 0:00:50]} a6 {[%emt 0:01:46]} 24. Qb4+ {[%emt 0:04:56]} Qe7 {[%emt 0:05:46]} 25. Qxe7+ {[%emt 0:03:55]} Kxe7 {[%emt 0:00:01]} 26. Nf5+ {[%emt 0:00:16]} Kd8 {[%emt 0:00:56]} 27. Nd6 {[%emt 0:01:18]} Kc7 {[%emt 0:00:22]} 28. Nxc8 {[%emt 0:02:55]} Kxc8 {[%emt 0:00:01]} 29. Bg4 {[%emt 0:00:14]} Kd7 {[%emt 0:00:01]} 30. c5 {[%emt 0:00:09]} Ke7 {[%emt 0:01:01]} 31. Ke2 {[%emt 0:01:34]} g6 {[%emt 0:03:28]} 32. Kd2 {[%emt 0:05:02]} h5 {[%emt 0:00:22]} 33. Bxe6 {[%emt 0:00:33]} Kxe6 {[%emt 0:00:01]} 34. Kc3 {[%emt 0:00:14]} Kf5 {[%emt 0:01:10]} 35. h3 {[%emt 0:00:14]} Ke6 {[%emt 0:00:39]} 36. g3 {[%emt 0:01:12]} g5 {[%emt 0:00:20]} 37. Kb4 {[%emt 0:00:14]} Kd7 {[%emt 0:00:02]} 38. Ka5 {[%emt 0:00:24]} Kc7 {[%emt 0:00:05]} 39. b4 {[%emt 0:01:02]} Kc8 {[%emt 0:00:07]} 40. Kb6 {[%emt 0:00:10]} Kb8 {[%emt 0:00:04]} 41. a3 {[%emt 0:01:43]} Kc8 {[%emt 0:00:07]} 42. a4 {[%emt 0:00:06]} Kb8 {[%emt 0:00:05]} 43. b5 {[%emt 0:00:08]} axb5 {[%emt 0:00:05]} 44. axb5 {[%emt 0:00:06]} cxb5 {[%emt 0:00:04]} 45. Kxb5 {[%emt 0:00:09]} Kc7 {[%emt 0:00:12]} 46. Ka4 {[%emt 0:00:23]} Kd7 {[%emt 0:03:44]} 47. Kb4 {[%emt 0:00:12]} g4 {[%emt 0:00:37]} 48. h4 {[%emt 0:00:33]} Kc6 {[%emt 0:00:56]} 49. Ka5 {[%emt 0:00:07]} Kd7 {[%emt 0:00:30]} 50. Kb6 {[%emt 0:00:27]} Kc8 {[%emt 0:00:03]} 51. c6 {[%emt 0:00:15]} Kb8 {[%emt 0:00:06]} 52. Kc5 {[%emt 0:00:12]} 1-0

[Event "VIII Open Semana Santa 2024"]
[Site "San Vicente del Raspeig"]
[Date "2024.03.30"]
[Round "6.15"]
[White "Colbow, Collin"]
[Black "Levin, Guy"]
[Result "1/2-1/2"]
[ECO "B12"]
[WhiteElo "2373"]
[BlackElo "2452"]
[Annotator "TA"]
[PlyCount "75"]
[EventDate "2024.03.27"]
[EventType "swiss"]
[EventCountry "ESP"]
[SourceTitle "playchess.com"]
[Source "ChessBase"]
[SourceQuality "1"]
[TimeControl "5400+30"]

{[%evp 15,75,0,35,13,31,8,7,0,39,22,23,-17,-20,-53,-43,-31,-39,-49,-32,-52,-48,-131,-121,-111,-103,-93,-93,-89,-77,-60,-70,-74,-72,-73,-62,-82,-68,-74,-68,-101,-79,-105,-18,-27,-20,-40,-66,-56,-39,-76,-75,-67,-70,-52,0,0,0,0,0,0,0,0]} 1. e4 {[%emt 0:00:06]} c6 {[%emt 0:00:12]} 2. d4 {[%emt 0:00:07]} d5 {[%emt 0:00:03]} 3. e5 {[%emt 0:00:10]} Bf5 {[%emt 0:00:06]} 4. h4 {[%emt 0:00:28]} h5 {[%emt 0:00:06]} 5. c4 {[%emt 0:00:10]} dxc4 {[%emt 0:01:26]} 6. Bxc4 {[%emt 0:01:33]} e6 {[%emt 0:00:06]} 7. Nc3 {[%emt 0:00:46]} Nd7 {[%emt 0:04:14]} 8. Nge2 {[%emt 0:00:56]} Nb6 {[%emt 0:03:53]} 9. Bd3 {[%emt 0:02:02]} Nh6 {[%emt 0:08:57]} 10. Bg5 {[%emt 0:06:43]} Qd7 {[%emt 0:02:49]} 11. O-O {[%emt 0:03:53]} Bg4 {[%emt 0:10:42]} 12. f3 {[%emt 0:24:36]} Bf5 {[%emt 0:00:45]} 13. Rc1 {[%emt 0:03:56]} Be7 {[%emt 0:07:17]} 14. Qd2 {[%emt 0:04:03]} Bxd3 $1 {[%emt 0:16:27]} 15. Qxd3 {[%emt 0:01:27]} Nf5 {[%emt 0:01:01]} 16. Ne4 {[%emt 0:03:38]} Rd8 {[%emt 0:10:54]} 17. Rcd1 {[%emt 0:06:20]} Nd5 {[%emt 0:06:23][%cal Of7f6]} 18. Rd2 {[%emt 0:05:37]} (18. N2g3 $15) 18... f6 $1 $17 {[%emt 0:05:44]} 19. Bf4 {[%emt 0:09:21]} Nxf4 {[%emt 0:00:34]} 20. Nxf4 {[%emt 0:00:07]} Qxd4+ {[%emt 0:00:10]} (20... Nxd4 $2 21. Ng6 $18) 21. Qxd4 {[%emt 0:00:11]} Rxd4 {[%emt 0:02:00]} 22. Rxd4 {[%emt 0:04:30]} Nxd4 {[%emt 0:00:23]} 23. Rd1 $1 {[%emt 0:00:10] Strongly threatening Ng6.} fxe5 {[%emt 0:01:36]} 24. Ng6 {[%emt 0:00:04][%csl LRe5,LRh8]} Rh6 {[%emt 0:02:51]} 25. Nxe5 {[%emt 0:00:24] [#]} Nf5 {[%emt 0:00:02]} 26. g3 {[%emt 0:02:25]} Bf6 {[%emt 0:01:13]} 27. Nc4 {[%emt 0:03:15]} Bd4+ {[%emt 0:01:12]} 28. Kh2 {[%emt 0:03:49] [#]} Ke7 {[%emt 0:03:18] Against Ned6} (28... e5 $1 $17 {...b5 would now be deadly.} 29. b4 b5) 29. Na5 $11 {[%emt 0:01:38]} Rh8 {[%emt 0:00:08]} (29... Bxb2 $6 30. Rb1 Bd4 31. Rxb7+ (31. Nxb7 Bb6 $15) 31... Ke8 32. Nxc6 $14) 30. b4 {[%emt 0:02:37]} (30. Nxb7 Rb8 (30... Bxb2 31. Rb1 $11) 31. Na5 Rxb2+ (31... Bxb2 $2 32. Nxc6+ Ke8 33. Nxb8 $18) 32. Kh3 Rc2 $17 (32... Rxa2 $2 33. Nxc6+ Kf8 34. Nxd4 $18)) 30... Rb8 {[%emt 0:00:52]} 31. Nc5 {[%emt 0:02:52]} Bf2 {[%emt 0:00:43]} (31... Bxc5 {simplifies} 32. bxc5 e5 33. Nc4 Kf6) 32. g4 {[%emt 0:01:12]} Bxc5 {[%emt 0:02:00]} ({But not} 32... Nxh4 33. Ncxb7 Rc8 (33... Nxf3+ 34. Kg2 $16) 34. Nd6 $11) 33. bxc5 {[%emt 0:00:17]} hxg4 {[%emt 0:00:04]} 34. fxg4 $17 {[%emt 0:00:36] KRN-KRN} Ne3 {[%emt 0:00:07]} (34... Nxh4 $15 35. Rb1 Nf3+ 36. Kg3 Ne5) 35. Rd4 $11 {[%emt 0:02:50] The position is equal.} Nd5 {[%emt 0:01:47]} 36. Rd3 {[%emt 0:01:00]} Nf6 {[%emt 0:05:10]} 37. g5 {[%emt 0:01:44]} Nd7 {[%emt 0:01:36]} (37... Ne4 $5) 38. Rb3 {[%emt 0:00:04] Weighted Error Value: White=0.15 (very precise) /Black=0.13 (very precise) .  Mistake:       	White=1     	Black=2      Inaccurate:     	White=5     	Black=1      OK:         	White=9     	Black=12     Best:        	White=2     	Black=2      Strong:       	White=1     	Black=2} 1/2-1/2

[Event "VIII Open Semana Santa 2024"]
[Site "San Vicente del Raspeig"]
[Date "2024.03.30"]
[Round "6.16"]
[White "Larkin, Vladyslav"]
[Black "Aronsson, Marten"]
[Result "1-0"]
[ECO "D01"]
[WhiteElo "2450"]
[BlackElo "2285"]
[Annotator "TA"]
[PlyCount "77"]
[EventDate "2024.03.27"]
[EventType "swiss"]
[EventCountry "ESP"]
[SourceTitle "playchess.com"]
[Source "ChessBase"]
[SourceQuality "1"]
[TimeControl "5400+30"]

{[%evp 9,77,4,3,0,0,0,7,0,16,18,31,44,46,52,55,37,76,75,62,53,57,76,64,31,29,16,10,9,20,12,14,13,8,7,12,19,7,14,19,0,9,14,64,62,54,56,73,66,71,62,73,69,65,52,75,57,57,51,74,37,81,81,87,84,81,86,182,195,195,181]} 1. d4 {[%emt 0:09:41]} d5 {[%emt 0:00:29]} 2. Nc3 {[%emt 0:01:13]} Nf6 {[%emt 0:01:56]} 3. Bg5 {[%emt 0:00:36]} Bf5 {[%emt 0:00:37][%cal Bc8f5,Bf5g6,Bg6h7][%mdl 32]} 4. f3 {[%emt 0:04:36]} h6 {[%emt 0:01:32]} 5. Bxf6 {[%emt 1:16:54]} exf6 {[%emt 0:00:12]} 6. e4 {[%emt 0:00:00]} dxe4 {[%emt 0:02:20]} 7. fxe4 {[%emt 0:00:00]} Bg6 {[%emt 0:00:05]} 8. Qd3 {[%emt 0:00:00] The position is equal.} a6 {[%emt 0:04:28]} 9. O-O-O {[%emt 0:00:00]} Bd6 {[%emt 0:08:31]} 10. Nf3 {[%emt 0:00:00]} Nc6 {[%emt 0:03:21]} 11. Nh4 {[%emt 0:00:00] Nxg6 is the strong threat.} Bh7 {[%emt 0:00:50]} 12. g4 {[%emt 0:00:00]} O-O {[%emt 0:07:01]} 13. Kb1 {[%emt 0:00:00]} Re8 {[%emt 0:00:25]} 14. Nf5 {[%emt 0:00:00]} Bf8 {[%emt 0:07:36]} 15. h4 {[%emt 0:00:00]} Bxf5 {[%emt 0:03:13]} 16. gxf5 {[%emt 0:00:00]} Qd6 {[%emt 0:01:41]} 17. Be2 {[%emt 0:00:00]} Rad8 {[%emt 0:03:16][%cal Rd6d4]} 18. Nd5 {[%emt 0:00:00]} Nb4 {[%emt 0:09:42]} 19. Nxb4 {[%emt 0:00:00]} Qxb4 {[%emt 0:00:04]} 20. Bh5 {[%emt 0:00:00]} c5 {[%emt 0:07:51]} 21. c3 {[%emt 0:00:00]} Qa4 {[%emt 0:00:08]} 22. Rhg1 {[%emt 0:00:00]} cxd4 {[%emt 0:01:58]} (22... Qb5 {simplifies} 23. Bf3 Qxd3+ 24. Rxd3 cxd4 25. cxd4 Rd7) 23. cxd4 {[%emt 0:00:00]} Qc6 {[%emt 0:00:09]} 24. Rg4 {[%emt 0:00:00][%cal Oh5f7] aiming for Bxf7+!} Rc8 {[%emt 0:05:13]} 25. Rdg1 {[%emt 0:00:00] And now a3 would win.} Qc4 {[%emt 0:11:30]} (25... Rc7 $11) 26. Qd2 $1 $14 {[%emt 0:00:00] Dancing on a razor blade.} Kh8 {[%emt 0:02:28] [#]} 27. e5 $1 {[%emt 0:00:00] Threatens to win with exf6.} Qd5 $1 {[%emt 0:00:53]} 28. Qg2 {[%emt 0:00:00]} Qxg2 {[%emt 0:03:08]} 29. R4xg2 {[%emt 0:00:00]} ({But not} 29. R1xg2 Re7 $14) 29... Re7 {[%emt 0:05:35]} 30. exf6 {[%emt 0:00:00]} gxf6 {[%emt 0:00:08]} 31. Rg8+ {[%emt 0:00:00]} Kh7 {[%emt 0:00:06] [#]} 32. R1g7+ $1 {[%emt 0:00:00]} Bxg7 {[%emt 0:00:12]} 33. Rxc8 {[%emt 0:00:00][%mdl 4096] Endgame. Kc2 would now be deadly. KRB-KRB} Rd7 {[%emt 0:00:46]} 34. d5 {[%emt 0:00:00]} Bh8 {[%emt 0:06:59] [#]} 35. d6 $1 {[%emt 0:00:00][%cal Oh5f7]} Bg7 {[%emt 0:02:29]} 36. Kc2 {[%emt 0:02:43] White has more active pieces.} Rxd6 {[%emt 0:00:23]} 37. Bxf7 {[%emt 0:00:04][%csl Gf5][%cal Rf7g6]} Rc6+ {[%emt 0:00:11]} (37... h5 $16) 38. Rxc6 $18 {[%emt 0:00:05]} bxc6 {[%emt 0:00:02] [#]} 39. Kb3 $1 {[%emt 0:00:13] Weighted Error Value: White=0.03 (flawless) /Black=0.11 (very precise) .  Mistake:       	---       	Black=2      Inaccurate:     	White=2     	Black=2      OK:         	White=14    	Black=13     Best:        	White=2     	Black=3      Strong:       	White=2     	Black=1      Brilliant:      	White=1     	---} 1-0